{"text_format":"2","workbook":"xlsx","n_sheets":9,"sheets":["Toelichting zelfcheck","Deel 1","Deel 2","Deel 3","vraag 1.1-1.2","vraag 1.3 - 1.5","vraag 1.6 - 1.15","vraag 2.2 - 2.4","vraag 3.12 - 3.16"],"not_rendered":{"charts":0,"images":1,"macros":0,"external_links":0,"defined_names":41,"comments":3,"pivot_tables":0},"unopened":[],"bounds":{"document_bytes":16777216,"sheet_cells":100000,"run_cost":"one","rows_first":2000,"rows_last":500,"rows_between":2000,"halvings":0,"cell_chars":16384,"cell_head_chars":4096},"cells_cut":0,"cells_raw":0,"read":"whole","date_system":"1900"}

{"sheet":"Toelichting zelfcheck","index":0,"n_rows":75,"n_cols":6,"rows_kept":75,"cut":false,"hidden":false,"merged":[]}
[]
[]
[null,null,"Toelichting bij zelfcheck kwaliteitstoets "]
[]
[null,null,"U vindt hier de zelfcheck kwaliteitstoets logopedie. In de zelfcheck staan de criteria kwaliteitstoets logopedie 2020, versie 2.0, juli 2019."]
[]
[null,null,"Voor wie is de zelfcheck kwaliteitstoets bedoeld?"]
[null,null,"De zelfcheck is bedoeld voor logopedisten die een eerstelijnsovereenkomst hebben met een zorgverzekeraar. Dit kunnen logopedisten werkzaam in een "]
[null,null,"eerstelijnspraktijk zijn maar ook logopedisten werkzaam in een instelling of school met een eerstelijnsovereenkomst."]
[]
[null,null,"Hoe kun je de zelfcheck kwaliteitstoets gebruiken?"]
[null,null,"Met de zelfcheck kwaliteitstoets kunt u de criteria kwaliteitstoets bekijken. U kunt checken of uw praktijkvoering en methodisch logopedisch handelen "]
[null,null,"voldoen aan de eisen. De criteria kwaliteitstoets worden gebruikt bij de kwaliteitstoets logopedie die door een auditbureau (HCA of Kiwa) wordt uitgevoerd.  "]
[null,null,"De toetsing kan plaatsvinden op verzoek van een praktijk of  op verzoek van een zorgverzekeraar.  "]
[]
[null,null,"Wat is de status van de zelfcheck kwaliteitstoets?"]
[null,null,"De zelfcheck kwaliteitstoets is gebaseerd op de criteria kwaliteitstoets 2020, versie 1.0 juli 2019. De criteria zijn in juni 2019 vastgesteld door"]
[null,null,"het verenigingsbestuur van de NVLF. "]
[]
[null,null,"Wat moet ik weten voordat ik de zelfcheck kwaliteitstoets invul?"]
[]
[null,null,"Afkortingen"]
[]
[null,null,"In de zelfcheck worden de volgende afkortingen gebruikt:"]
[null,null,"C = conform (≥ 80%)"]
[null,null,"NC = niet conform"]
[null,null,"NVT = niet van toepassing"]
[]
[null,null,"Rode vragen"]
[]
[null,null,"De vragen die rood gekleurd zijn, zijn vragen waarop een C (= conform ≥ 80%) gescoord moet worden om de toets te halen."]
[]
[null,null,"Normering"]
[]
[null,null,null,"Bij een solopraktijk worden 5 dossiers getoetst. Bij een middelgrote praktijk (≤ 5 fte*) worden 10 dossiers getoetst. Bij een grote praktijk"]
[null,null,null," (> 5 fte) worden 15 dossiers getoetst."]
[]
[null,null,null,"Bij het toetsen van de dossiers is sprake van een zogenaamde 'horizontale beoordeling'. Dit betekent dat bij de beoordeling van de 5 of 10 of "]
[null,null,null,"15  dossiers er per vraag van iedere rubriek wordt beoordeeld of de gestelde vraag met een C kan worden beantwoord."]
[null,null,null,"Voorbeeld"]
[null,null,null,"Bij een score van 80% betekent dit dat er in 1 van de 5, respectievelijk 2 van de 10 of 3 van de 15 te toetsen dossier sprake mag zijn van een NC ."]
[null,null,null,"op de gestelde vraag."]
[]
[null,null,null,"Bij dossiers waarbij er op onderdelen sprake is van een NVT score geldt dat deze score op geen enkele wijze wordt doorberekend "]
[null,null,null,"(zowel positief als negatief) in de totaalscore."]
[]
[null,null,"Overige opmerkingen"]
[null,null,"De dossiertoets is gebaseerd op de basisgegevens uit de NVLF richtlijn logopedische dossiervorming (2019)."]
[null,null,"De gegevens hoeven niet in volgorde van de criteria kwaliteitstoets vastgelegd te worden in het dossier. Criteria mogen gecombineerd worden. "]
[null,null,"Ook hoeven gegevens niet dubbel vastgelegd te worden als het om dezelfde gegevens "]
[null,null,"gaat. Bijvoorbeeld als uit de anamnese en onderzoek dezelfde gegevens komen dan is eenmalig vastleggen voldoende."]
[]
[null,null,"Welke bronnen zijn gebruikt bij het samenstellen van de criteria kwaliteitstoets?"]
[]
[null,null,"Bij het samenstellen van de criteria kwaliteitstoets zijn de volgende bronnen gebruikt:"]
[]
[null,null,"o","Artikel Procesindicatoren voor logopedie bij de ziekte van Parkinson, Kalf et. al. 2010."]
[null,null,"o","Addendum richtlijn logopedische verslaggeving, NVLF, 2017."]
[null,null,"o","Logopedische standaarden eerstelijn, NVLF, 2017."]
[null,null,"o","NVLF Richtlijn Logopedische Dossiervorming 2019 . "]
[null,null,"o","      Richtlijn Behandeling en Diagnostiek bij Afasie, NVLF 2015."]
[null,null,"o","Richtlijn logopedie bij de ziekte van Parkinson, NVLF, 2017."]
[null,null,"o","Richtlijn Stotteren bij kinderen, adolescenten en volwassenen NVLF, 2014."]
[null,null,"o","WKKGZ  https://www.rijksoverheid.nl/onderwerpen/kwaliteit-van-de-zorg/inhoud/wet-kwaliteit-klachten-en-geschillen-zorg"]
[]
[null,null,"Waar vind ik meer informatie over de kwaliteitstoets?"]
[null,null,"Meer informatie vindt u op de ",null,null,"NVLF website."]
[]
[null,null,"Tot slot"]
[null,null,"Deze zelfcheck kwaliteitstoets is mede tot stand gekomen door Ed van Elk (veiligheidskundige / auditor) en Tiana van Wijngaarden (logopedist). "]
[]
[null,null,"Aan deze zelfcheck kwaliteitstoets kunnen geen rechten worden ontleend."]
[null,null,"Niets uit dit document mag worden verveelvoudigd en / of openbaar worden gemaakt zonder voorafgaande schriftelijke toestemming van de NVLF."]
[]
[null,null,"* 1 fte is 40 uur."]

{"sheet":"Deel 1","index":1,"n_rows":207,"n_cols":28,"rows_kept":207,"cut":false,"hidden":false,"merged":[]}
[]
[]
[]
[]
[null,null,null,"Deel 1 Methodisch logopedisch handelen/dossiertoets",{"$nulls":13},"Normering onderdeel A. Aanmelding"]
[]
[{"$nulls":17},"Bij het toetsen van"]
[null,null,null,"A. Aanmelding",{"$nulls":13},"5 dossiers (eenmanspraktijk) of"]
[{"$nulls":12},"C= conform",{"$nulls":4},"10 dossiers ( ≤ 5 fte) of",null,null,"(1 fte = 40 uur)"]
[null,null,null,"Bij Aanmelding na verwijzing geldt: 1.1 en 1.2",{"$nulls":8},"NC= niet conform",{"$nulls":4},"15 dossiers (> 5 fte), "]
[null,null,null,"Bij Aanmelding en DTL-screening geldt: 1.3 t/m 1.5",{"$nulls":8},"NVT= niet van toepassing",{"$nulls":4},"moet  bij deze dossiers dat betrekking heeft op dit onderdeel een "]
[{"$nulls":17},"score van 80% gehaald worden. "]
[null,null,null,"Aanmelding na verwijzing",{"$nulls":13},"Indien een score lager is dan 80% wordt een NC gescoord."]
[]
[null,null,"1.1 ","Zijn de relevante* gegevens aanwezig in het dossier?",{"$nulls":13},"Er mag 1 keer NC gescoord worden bij 1.1 t/m 1.2. Indien meer dan "]
[null,null,null,"*) persoonsgegevens (naam, geboortedatum, geslacht, legitimatie op orde, code patiënt/BSN), gegevens ",{"$nulls":13},"1 keer NC is gescoord dan is de uitkomst van de toets negatief.",{"$nulls":8},"C"]
[null,null,null,"contactpersoon (naam contactpersoon), verzekeringsgegevens patiënt, gegevens behandelend",{"$nulls":9},"START",{"$nulls":12},"NC"]
[null,null,null,"logopedist, gegevens verwijzer (naam verwijzer, specialisme verwijzer / code verwijzer), verwijsgegevens ",{"$nulls":13},"Er mag 2 keer NC gescoord worden bij 1.3 t/m 1.5. Indien meer dan ",{"$nulls":8},"NVT"]
[null,null,null,"(verwijsdatum, verwijsdiagnose / verwijsindicatie, indien van toepassing: schriftelijke vraag verwijzer",{"$nulls":13},"2 keer NC is gescoord dan is de uitkomst van de toets negatief."]
[null,null,null," eenmalig logopedisch onderzoek), gegevens huisarts (naam huisarts, code huisarts)."]
[null,null,null,"Toelichting gegevens contactpersoon: voor afstemming van de behandeling met ouders / verzorgers, ",{"$nulls":13},"Er worden zowel dossiers getoetst van patiënten waarvan de behandeling "]
[null,null,null,"in geval van een noodsituatie etc. ",{"$nulls":13},"is afgesloten als dossiers van patiënten waarvan de behandeling nog niet "]
[null,null,null,"Bij kinderen t/m 16 jaar en bij wilsonbekwame patiënten zal altijd de naam van de ouder(s), of voogd worden",{"$nulls":13},"is afgesloten. 80% van de dossiers betreft  niet afgesloten behandelingen "]
[null,null,null,"genoteerd. Voor andere patiënten is de naam van de contactpersoon een mogelijk relevant gegeven.",{"$nulls":13},"en 20% van dossiers betreft afgesloten behandelingen."]
[null,null,null,"De contactpersoon mag niet de naam van de patiënt zijn."]
[]
[null,null,null,"Indien de patiënt geen ID-bewijs kan laten zien, dient dit vastgelegd te worden in het dossier. "]
[null,null,null,"Het feit dat een patiënt dit niet (bij zich) heeft is niet van invloed op de uitkomst van de audit. ",{"$nulls":13},"Aantal FTE ? :",null,1,null,"Aantal dossiers:",null,{"$f":"IF(T28<=1,5,IF(AND(T28>1,T28<=5),10,IF(T28>5,15, \"FTE\")))","v":5}]
[]
[null,null,null,"Meer info:","Richtlijn dossiervorming 3.1.4"]
[]
[null,null,"1.2","Is de toestemming die gevraagd is aan de patiënt voor overleg met derden vastgelegd?"]
[null,null,null,"Toelichting: mondelinge toestemming van de cliënt is voldoende. Leg deze toestemming vast in het dossier; "]
[null,null,null,"ja of nee aanvinken in de software met daarbij vermelding van de datum volstaat. De toestemming mag ook schriftelijk "]
[null,null,null,"worden vastgelegd maar is niet verplicht. Schriftelijke toestemming kan bijvoorbeeld vastgelegd worden "]
[null,null,null,"in een behandelovereenkomst.",{"$nulls":9},"START"]
[null,null,null,"Meer info:","Voorbeeld Behandelovereenkomst"]
[{"$nulls":12},"Score \"NC\" max 1 uit 2",{"$f":"COUNTIFS(N15:N32, \"NC\")","v":0}]
[null,null,null,"Aanmelding en DTL-screening"]
[]
[null,null,"1.3","Zijn de relevante* gegevens aanwezig in het dossier?"]
[null,null,null,"*) persoonsgegevens (naam, geboortedatum, geslacht, legitimatie op orde, code patiënt/BSN), gegevens "]
[null,null,null,"contactpersoon (naam contactpersoon), verzekeringsgegevens patiënt, gegevens behandelend"]
[null,null,null,"logopedist, gegevens huisarts (alleen naam huisarts).",{"$nulls":9},"START"]
[]
[null,null,null,"Toelichting gegevens contactpersoon: voor afstemming van de behandeling met ouders / verzorgers, "]
[null,null,null,"in geval van een noodsituatie etc. "]
[null,null,null,"Bij kinderen t/m 16 jaar en bij wilsonbekwame patiënten zal altijd de naam van de ouder(s), of voogd worden"]
[null,null,null,"genoteerd. Voor andere patiënten is de naam van de contactpersoon een mogelijk relevant gegeven."]
[null,null,null,"De contactpersoon mag niet de naam van de patiënt zijn."]
[]
[null,null,null,"Indien de patiënt geen ID bewijs kan laten zien, dient dit vastgelegd te worden in het dossier."]
[null,null,null,"Het feit dat een patiënt dit niet (bij zich) heeft is niet van invloed op de uitkomst van de audit. "]
[]
[null,null,null,"Meer info:","Richtlijn dossiervorming 3.1.2"]
[]
[null,null,"1.4","Is de conclusie van de DTL-screening ('pluis'/'niet-pluis') vastgelegd?"]
[]
[null,null,null,"Meer info, ","Richtlijn dossiervorming 3.1.3",{"$nulls":8},"START"]
[]
[]
[null,null,"1.5","Is de toestemming van de cliënt voor overleg met de arts vastgelegd?"]
[null,null,null,"Toelichting: mondelinge toestemming van de cliënt is voldoende. Leg deze toestemming vast in het dossier; "]
[null,null,null,"ja of nee aanvinken in de software met daarbij vermelding van de datum volstaat. De toestemming mag ook schriftelijk "]
[null,null,null,"worden vastgelegd maar is niet verplicht. Schriftelijke toestemming kan bijvoorbeeld vastgelegd worden in een "]
[null,null,null,"behandelovereenkomst."]
[null,null,null,"Meer info","Voorbeeld Behandelovereenkomst",{"$nulls":8},"START"]
[]
[null,null,null,"Meer info, ","Richtlijn dossiervorming 3.1.3"]
[]
[]
[{"$nulls":12},"Score \"NC\" max 2 uit 3",{"$f":"COUNTIF(N41:N70, \"NC\")","v":0}]
[]
[]
[]
[null,null,null,"B. Anamnese",{"$nulls":13},"Normering onderdeel B. Anamnese + C. Onderzoek"]
[]
[null,null,"1.6","Is de contactreden/hulpvraag van de patiënt vastgelegd?",{"$nulls":13},"Bij het toetsen van"]
[{"$nulls":17},"5 dossiers (eenmanspraktijk) of"]
[null,null,null,"Meer info, ","Richtlijn dossiervorming 3.2.2",{"$nulls":4},"en","ICF/ICIDH",null,null,"START",null,null,null,"10 dossiers ( ≤ 5 fte) of"]
[{"$nulls":17},"15 dossiers (> 5 fte), "]
[{"$nulls":17},"moet  bij deze dossiers dat betrekking heeft op dit onderdeel een "]
[{"$nulls":17},"score van 80% gehaald worden. Indien een score lager is dan"]
[{"$nulls":17}," 80% wordt een NC gescoord."]
[]
[{"$nulls":17},"Er mag 1 keer NC gescoord worden bij 1.6 en 1.7. Indien meer dan "]
[{"$nulls":17},"1 keer NC is gescoord dan is de uitkomst van de toets negatief."]
[{"$nulls":12},"Score zie vraag 1.7"]
[{"$nulls":17},"Er worden zowel dossiers getoetst van cliënten waarvan de behandeling "]
[{"$nulls":17},"is afgesloten als dossiers van cliënten waarvan de behandeling nog niet "]
[{"$nulls":17},"is afgesloten. 80% van de dossiers betreft  niet afgesloten behandelingen "]
[{"$nulls":17},"en 20% van dossiers betreft afgesloten behandelingen."]
[null,null,null,"C. Onderzoek"]
[]
[null,null,"1.7","Zijn de onderzoeksgegevens vastgelegd?*",{"$nulls":13},"Bij het toetsen van"]
[null,null,null,"*) Hier komen alle gegevens te staan die relevant zijn in het kader van het onderzoek. Daarbij valt te denken aan",{"$nulls":13},"5 dossiers (eenmanspraktijk) of"]
[null,null,null,"wat en hoe het is onderzocht (test, meeting, gebruikt instrument) en wat de resultaten zijn van het onderzoek",{"$nulls":9},"START",null,null,null,"10 dossiers ( ≤ 5 fte) of"]
[null,null,null," (qua aard en ernst).",{"$nulls":13},"15 dossiers (> 5 fte), "]
[null,null,null,"Meer info, ","Richtlijn dossiervorming 3.3.1",{"$nulls":12},"moet  bij deze dossiers dat betrekking heeft op dit onderdeel een "]
[{"$nulls":17},"score van 80% gehaald worden."]
[{"$nulls":12},"Score \"NC\" max 1 uit 2",{"$f":"COUNTIFS(N78:N95, \"NC\")","v":0},null,null,null,"Indien een score lager is dan 80% wordt een NC gescoord."]
[]
[{"$nulls":17},"Er worden zowel dossiers getoetst van cliënten waarvan de behandeling "]
[{"$nulls":17},"is afgesloten als dossiers van cliënten waarvan de behandeling nog niet "]
[{"$nulls":17},"is afgesloten. 80% van de dossiers betreft  niet afgesloten behandelingen "]
[{"$nulls":17},"en 20% van dossiers betreft afgesloten behandelingen."]
[]
[]
[]
[]
[null,null,null,"D. Analyse",{"$nulls":13},"Normering onderdeel D. Analyse"]
[]
[null,null,"1.8","Is de logopedische diagnose/conclusie vastgelegd?*",{"$nulls":13},"Bij het toetsen van"]
[null,null,null,"*) de logopedische diagnose / conclusie bestaat uit:",{"$nulls":13},"5 dossiers (eenmanspraktijk) of"]
[null,null,null,". Evt. aanwezige stoornissen, beperkingen en participatieproblemen;",{"$nulls":13},"10 dossiers ( ≤ 5 fte) of"]
[null,null,null,". niet aangedane of juist bijzonder goede functies, anatomische eigenschappen, activiteiten en participatie;",{"$nulls":13},"15 dossiers (> 5 fte), "]
[null,null,null,". relevante medische, externe en persoonlijke factoren;",{"$nulls":13},"moet  bij deze dossiers dat betrekking heeft op dit onderdeel een "]
[null,null,null,". (onderdelen van ) contactreden / hulpvraag (indien relevant).",{"$nulls":13},"score van 100% gehaald worden."]
[null,null,null,"Toelichting: de onderdelen van de logopedische diagnose hoeven voor de kwaliteitstoets niet in verhaalvorm vastgelegd te zijn. ",{"$nulls":13},"Bij het scoren van een NC op dit onderdeel is de uitkomst van de toets negatief."]
[]
[null,null,null,"Meer info, ","Richtlijn dossiervorming 3.4.2",{"$nulls":4},"en","ICF/ICIDH",null,null,"START",null,null,null,"Er worden zowel dossiers getoetst van cliënten waarvan de behandeling "]
[{"$nulls":17},"is afgesloten als dossiers van cliënten waarvan de behandeling nog niet "]
[{"$nulls":12},"Score \"C\" minimaal 1 uit 1",{"$f":"COUNTIFS(N113, \"C\")","v":0},null,null,null,"is afgesloten. 80% van de dossiers betreft  niet afgesloten behandelingen "]
[{"$nulls":17},"en 20% van dossiers betreft afgesloten behandelingen."]
[]
[]
[]
[null,null,null,"E. Behandelplan",{"$nulls":13},"Normering onderdeel E. Behandelplan"]
[]
[null,null,"1.9","Is het beoogde resultaat/hoofddoel voor een periode van max 6 maanden vastgelegd?*",{"$nulls":13},"Bij het toetsen van"]
[null,null,null,"*) Het beoogde resultaat / hoofddoel wordt SMART1  vastgelegd.",{"$nulls":13},"5 dossiers (eenmanspraktijk) of"]
[null,null,null,"Toelichting: Het beoogde resultaat / hoofddoel worden binnen maximaal vijf behandelingen vastgelegd2.  ",{"$nulls":13},"10 dossiers ( ≤ 5 fte) of"]
[null,null,null,"Het beoogd resultaat / hoofddoel wordt SMART  vastgelegd; dat betekent dat – in overleg met en  ",{"$nulls":13},"15 dossiers (> 5 fte), "]
[null,null,null,"met toestemming van de patiënt (‘acceptabel’) - het ‘wat’ wordt vastgelegd (het logopedisch probleem",{"$nulls":13},"moet bij deze dossiers dat betrekking heeft op dit onderdeel een "]
[null,null,null,"dat de logopedist wil aanpakken), de mate waarin (hetgeen bereikt moet worden, waar mogelijk ",{"$nulls":13},"score van 80% gehaald worden."]
[null,null,null,"gekwantificeerd (‘meetbaar’) en haalbaar (‘realistisch’)) en de periode waarbinnen het doel / resultaat moet zijn behaald ",{"$nulls":13},"Indien een score lager is dan 80% wordt een NC gescoord."]
[null,null,null,"('tijdgebonden')3. Het is aan de logopedist om een inschatting te maken van wat 'realistisch' is, waarbij, "]
[null,null,null,"indien beschikbaar, gebruik gemaakt kan worden van zorginhoudelijke richtlijnen.",{"$nulls":13},"Op onderdeel 1.9 moet C gescoord worden. Bij het scoren van een NC "]
[null,null,null,"1: SMART: Specifiek, Meetbaar, Acceptabel, Realistisch, Tijdsgebonden.",{"$nulls":13},"op dit onderdeel is de uitkomst van de toets negatief."]
[]
[null,null,null,"3: Als een hoofddoel niet SMART kan worden geformuleerd, moet dit worden toegelicht in het dossier."]
[null,null,null,"Meer info, ","Richtlijn dossiervorming 3.5.2",{"$nulls":8},"START"]
[{"$nulls":17},"Er worden zowel dossiers getoetst van cliënten waarvan de behandeling "]
[null,null,null,"Meer informatie over het opstellen van SMART-doelen: ",{"$nulls":8},"Score \"C\" minimaal 1 uit 1",{"$f":"COUNTIFS(N130, \"C\")","v":0},null,null,null,"is afgesloten als dossiers van cliënten waarvan de behandeling nog niet "]
[null,null,null,"Boek SMART in de logopedie, Ineke de Groot en Maartje Oosterwijk 2017.",{"$nulls":13},"is afgesloten. 80% van de dossiers betreft  niet afgesloten behandelingen "]
[{"$nulls":17},"en 20% van dossiers betreft afgesloten behandelingen."]
[null,null,"1.10","Is vastgelegd dat het  behandelplan besproken is met de patiënt dan wel dat de patiënt akkoord is?*"]
[null,null,null,"*) Er wordt vastgelegd dat het behandelplan is besproken met de patiënt, dan wel dat de patiënt zich akkoord "]
[null,null,null,"heeft verklaard met het behandelplan. Daarbij is geen handtekening van de patiënt vereist. Als de patiënt daarom vraagt, "]
[null,null,null,"is de logopedist, ingevolge de Wet op de geneeskundige behandelingsovereenkomst (WGBO), verplicht schriftelijk  "]
[null,null,null,"vast te leggen voor welke verrichtingen / behandeling de patiënt toestemming heeft gegeven."]
[]
[null,null,null,"Meer info, ","Richtlijn dossiervorming 3.5.2",null,null,null,"en",null,"Logopedische Standaard 1e lijn (33), blz. 33",null,null,"START"]
[]
[{"$nulls":12},"Score \"NC\" max 1 uit 1",{"$f":"COUNTIFS(N147, \"NC\")","v":0}]
[]
[]
[]
[null,null,null,"F. Behandeling",{"$nulls":13},"Normering onderdeel F. Behandeling, G. Evaluatie en "]
[{"$nulls":17},"H. Afsluiting"]
[null,null,"1.11","Zijn de gegevens van de uitgevoerde behandeling vastgelegd?*",{"$nulls":9},"C"]
[null,null,null,"*) datum sessie, afspraken met de patiënt (bijv. adviezen / huiswerk, instructies).",{"$nulls":13},"Op de onderdelen 1.11, 1.12, 1.13, 1.15 moet C gescoord worden. Bij het scoren"]
[null,null,null,"Toelichting: De gegevens dienen zo vastgelegd te worden dat een collega de behandeling eenvoudig kan ",{"$nulls":9},"START",null,null,null," van een NC op 1 of meerdere onderdelen is de uitkomst van de toets",{"$nulls":9},"C"]
[null,null,null,"overnemen.",{"$nulls":13},"negatief."]
[]
[null,null,null,"Meer info, ","Richtlijn dossiervorming 3.6.2",{"$nulls":12},"Er mag 1 keer NC gecoord worden op het onderdeel 1.14. Indien meer dan"]
[{"$nulls":17},"1 keer NC is gescoord is de uitkomst van de toets negatief. Indien bij",{"$nulls":9},"NC"]
[null,null,null,"G. Evaluatie",{"$nulls":13},"1.12 en/of 1.13 en/of 1.14 en/of 1.15 een NVT wordt gescoord dan heeft dit",{"$nulls":9},"NVT"]
[{"$nulls":17},"geen invloed op de uitkomst van de toets."]
[null,null,"1.12","Is een eindevaluatie* vastgelegd?",{"$nulls":9},"C","**"]
[null,null,null,"*) Een eindevaluatie bestaat uit: de datum van de evaluatie en een bescjhrivig van de eralisatie van het resultaat  ",{"$nulls":13},"Er worden zowel dossiers getoetst van patiënten waarvan de behandeling "]
[null,null,null,"(de mate waarin het hoofddoel beriekt is en de veranderingen in de gezondheidstoestand van de patiënt.",{"$nulls":13},"is afgesloten als dossiers van patiënten waarvan de behandeling nog niet "]
[null,null,null,"**) NVT voor dossiers waarvan de behandeling nog niet is afgesloten.",{"$nulls":9},"START",null,null,null,"is afgesloten. 80% van de dossiers betreft  niet afgesloten behandelingen "]
[{"$nulls":17},"en 20% van dossiers betreft afgesloten behandelingen."]
[null,null,null,"Meer info, ","Richtlijn dossiervorming 3.7.2",{"$nulls":4},"Logopedische Standaard 1e lijn (48), blz 15"]
[{"$nulls":8},"en"]
[null,null,"1.13","Is een evaluatie* uitgevoerd binnen maximaal 6 maanden na de vorige evaluatie?",{"$nulls":9},"C","**"]
[null,null,null,"*) Evaluatie vindt plaats maximaal 6 maanden na start behandeling en maximaal iedere 6 maanden hierop volgend."]
[null,null,null,"Een evaluatie bestaat uit datgene wat op dat moment relevant is. Dit kan bijvoorbeeld zijn: een beoordeling van het"]
[null,null,null,"behandelproces en resultaat (volgens de patiënt en volgens de logopedist) tot nu toe."]
[]
[null,null,null,"**) NVT als de gehele behandeling korter duurt dan 6 maanden (dan alleen een eindevaluatie).",{"$nulls":9},"START"]
[]
[null,null,null,"Meer info, ","Richtlijn dossiervorming 3.7.2"]
[]
[null,null,"1.14","Is een jaarlijkse rapportage* aan de verwijzer / behandelend arts geschreven bij behandelingen die ",{"$nulls":10},"**"]
[null,null,null,"langer dan 12 maanden duren?"]
[null,null,null,"* De rapportage bevat minimaal de volgende gegevens:"]
[null,null,null,"o","             medische diagnose en/of hulpvraag (indien vermeld op de verwijzing);"]
[null,null,null,"o","logopedische diagnose;",{"$nulls":8},"START"]
[null,null,null,"o","hulpvraag patiënt;"]
[null,null,null,"o","behandeldoel(en);"]
[null,null,null,"o","evaluatie;"]
[null,null,null,"o","voorstel voor vervolg (behandeling afsluiten, voortzetten)."]
[null,null,null,"**) NVT voor dossiers waarvan de behandeling afgesloten is binnen 12 maanden."]
[]
[null,null,null,"Meer info, ","Addendum richtlijn verslaggeving",{"$nulls":7},"Score \"NC\" max 1 uit 1",{"$f":"COUNTIFS(N186, \"NC\")","v":0}]
[]
[]
[]
[null,null,null,"H.  Afsluiting",{"$nulls":13},"Zie tekst hierboven"]
[]
[null,null,"1.15","Zijn de gegevens over afsluiting vastgelegd?*",{"$nulls":9},"C","**"]
[null,null,null,"*) datum afsluiting, datum verslaggeving aan verwijzer, nazorg/ afspraken, reden einde zorg."]
[null,null,null,"**) NVT voor dossiers waarvan de behandeling nog niet is afgesloten.",{"$nulls":9},"START"]
[]
[null,null,null,"Meer info, ","Richtlijn dossiervorming 3.8.1",{"$nulls":7},"Score \"C\" minimaal 4 uit 4",{"$f":"COUNTIFS(N161, \"C\")+COUNTIFS(N170, \"C\")+COUNTIFS(N170, \"NVT\")+COUNTIFS(N177, \"C\")+COUNTIFS(N177, \"NVT\")+COUNTIFS(N203, \"C\")+COUNTIFS(N203, \"NVT\")","v":4}]

{"sheet":"Deel 2","index":2,"n_rows":80,"n_cols":28,"rows_kept":80,"cut":false,"hidden":false,"merged":[]}
[]
[{"$nulls":13},"C= Conform"]
[null,null,null,"Deel 2 NVLF richtlijnen",{"$nulls":9},"NC= Niet Conform",null,null,null,"Normering NVLF richtlijnen"]
[]
[null,null,"2.1","Worden er in de praktijk patiënten behandeld die vallen onder onderstaande monodisciplinaire ",{"$nulls":13},"Het moet aantoonbaar zijn dat de praktijk de NVLF richtlijnen heeft "]
[null,null,null,"NVLF richtlijnen?",{"$nulls":13},"geïmplementeerd. Indien afgeweken is  van de richtlijn moet er een "]
[{"$nulls":17},"motivatie aanwezig zijn waarom er is afgeweken van de NVLF richtlijn. "]
[null,null,null,"Meer info",null,"NVLF Richtlijnen",{"$nulls":6},"Indien 'nee' ga naar criterium 3.1",{"$nulls":4},"Twee dossiers waarbij sprake is van de richtlijn worden at random "]
[{"$nulls":17},"getoetst."]
[null,null,"2.1.1             Richtlijn Logopedie bij de ziekte van Parkinson (2017)"]
[{"$nulls":12},"Indien 'ja' dan is criterium 2.2 van",{"$nulls":4},"Op de onderdelen 2.2, 2.3, 2.4 (indien van toepassing) moet C gescoord  "]
[null,null,null,"Meer info",null,"Kwaliteitscriteria Parkinson 2009",{"$nulls":6},"toepassing.",{"$nulls":4},"worden. Bij het scoren van een NC op 1 of meerdere onderdelen is  "]
[{"$nulls":12},"indien 'nee' ga naar criterium 2.1.2",{"$nulls":4},"de uitkomst van de toets negatief."]
[{"$nulls":17},"Criterium 2.1 wordt niet meegenomen in de score."]
[null,null,"2.1.2             Richtlijn Stotteren bij kinderen, adolescenten en volwassenen (2014)"]
[{"$nulls":12},"Indien 'ja' dan zijn criteria 2.3 en 2.4 van "]
[null,null,null,"Meer info",null,"NVLF Richtlijn Stotteren",{"$nulls":6},"toepassing."]
[{"$nulls":12},"Indien 'nee' ga naar criterium 2.1.3"]
[]
[null,null,"2.1.3             Richtlijn Diagnostiek en behandeling bij afasie"]
[{"$nulls":12},"Indien 'ja' dan zijn criteria 2.3 en 2.4 van "]
[null,null,null,"Meer info",null,"NVLF Richtlijn Afasie",{"$nulls":6},"toepassing."]
[{"$nulls":12},"Indien 'nee' ga naar criterium 3.1"]
[]
[null,null,"2.1.4             Richtlijn Logopedie bij taalontwikkelingsstoornissen"]
[{"$nulls":12},"Indien 'ja' dan zijn criteria 2.3 en 2.4 van "]
[null,null,null,"Meer info",null,"NVLF Richtlijn TOS",{"$nulls":6},"toepassing."]
[{"$nulls":12},"Indien 'nee' ga naar criterium 3.1"]
[]
[null,null,"2.2","Is er in getoonde richtlijndossiers over  Logopedie bij de ziekte van Parkinson voldaan aan minimaal ",{"$nulls":10},"**"]
[null,null,null,"drie indicatoren van onderstaande indicatoren*?"]
[null,null,null,"* Er is aan minimaal drie indicatoren van onderstaande indicatoren uit de richtlijn Logopedie bij de ziekte "]
[null,null,null,"van Parkinson (2008) voldaan.",{"$nulls":9},"START"]
[null,null,null,"a. Ik beoordeel zowel het spontane spreken als de stimuleerbaarheid van het spreken met maximale"]
[{"$nulls":4},"prestatietests."]
[null,null,null,"b. Ik ben er in het algemeen zeker van dat de patiënt die ik geschikt acht voor de volledige PLVT-behandeling, "]
[{"$nulls":4},"overwegend een hypokinetische dysartrie heeft."]
[null,null,null,"c. Ik gebruik een hulpmiddel (dB-meter, audio- of video-opname) om de patiënt feedback te kunnen geven over de "]
[{"$nulls":4},"intensiteit van zijn spreken."]
[null,null,null,"d. Ik behandel patiënten die geïndiceerd zijn voor de volledige behandeling met PLVT (LSVT) tenminste 3x in de week "]
[{"$nulls":4},"gedurende tenminste 4 weken."]
[null,null,null,"e. Ik ga bij verslikken na of de invloed van een dubbeltaak kan worden voorkomen."]
[]
[null,null,null,"**) NVT indien in de getoonde richtlijndossiers aantoonbaar is dat er gemotiveerd is afgeweken ",{"$nulls":23},"C"]
[null,null,null,"van het gebruik van de richtlijn.",{"$nulls":22},"C","NC"]
[{"$nulls":12},"Score zie vraag 2.4",{"$nulls":13},"NC","NVT"]
[]
[null,null,"2.3","Is in de getoonde richtlijndossiers aantoonbaar dat de in de richtlijn geadviseerde ",{"$nulls":10},"***"]
[null,null,null,"meetinstrumenten**) systematisch (>1x) worden ingezet?"]
[null,null,null,"**) = onder meetinstrumenten wordt verstaan het gebruik van vragenlijsten en performance testen."]
[null,null,null,"Het gaat bij dit criterium om aanbevelingen 9 en 10 uit de richtlijn Stotteren bij kinderen, adolescenten en volwassen (NVLF, 2014)."]
[null,null,null,"Het gaat bij dit criterium om aanbevelingen 1, 2 en 3 uit de Richtlijn Diagnostiek en behandeling bij afasie (NVLF, 2015)"]
[null,null,null,"Het gaat bij dit criterium om aanbevelingen 7 en 8 uit de richtlijn Logopedie bij taalontwikkelingsstoornissen (NVLF, 2017).",{"$nulls":9},"START"]
[null,null,null,"Meer info",null,"NVLF Richtlijn Stotteren"]
[null,null,null,"Meer info",null,"NVLF Richtlijn Afasie"]
[null,null,null,"Meer info ",null,"NVLF Richtlijn TOS"]
[null,null,null,"***)NVT indien in de getoonde richtlijndossiers aantoonbaar is dat er gemotiveerd is afgeweken "]
[null,null,null,"van het gebruik van de richtlijn."]
[{"$nulls":12},"Score zie vraag 2.4"]
[]
[null,null,"2.4","Is in de getoonde richtlijndossiers aantoonbaar dat de in de richtlijn geadviseerde behandeladviezen ",{"$nulls":10},"*"]
[null,null,null,"systematisch worden ingezet?"]
[null,null,null,"Het gaat bij dit criterium om aanbevelingen 2, 3, 5, 11, 14, 16, 19, 20, 22, 23, 25 uit de richtlijn Stotteren bij kinderen, "]
[null,null,null,"adolescenten en volwassen (NVLF, 2014).",{"$nulls":9},"START"]
[null,null,null,"Het gaat bij dit criterium om aanbevelingen 12, 33, 34, 35 en 37 uit de Richtlijn Diagnostiek en behandeling"]
[null,null,null,"bij afasie (NVLF, 2015)."]
[null,null,null,"Het gaat bij dit criterium om aanbevelingen 12 en 18 uit de richtlijn Logopedie "]
[null,null,null,"bij taalontwikkelingsstoornissen (NVLF, 2017)."]
[]
[null,null,null,"*) NVT indien in de getoonde richtlijndossiers aantoonbaar is dat er gemotiveerd is afgeweken van het gebruik van de richtlijn."]
[]
[{"$nulls":11},"Score \"C\" minimaal 3 uit 3",null,{"$f":"COUNTIF(N30:N61, \"C\")+COUNTIF(N30:N61, \"NVT\")","v":0}]
[]
[]
[{"$nulls":26},"ja"]
[{"$nulls":26},"nee"]
[]
[{"$nulls":27},"C"]
[{"$nulls":27},"NC"]
[{"$nulls":27},"NVT"]

{"sheet":"Deel 3","index":3,"n_rows":79,"n_cols":27,"rows_kept":79,"cut":false,"hidden":false,"merged":[]}
[]
[]
[]
[{"$nulls":4},"Deel 3 Organisatie van de praktijk",{"$nulls":12},"Normering onderdeel A. Organisatie"]
[]
[{"$nulls":12},"C= Conform",{"$nulls":4},"Op de onderdelen 3.1, 3.2 en 3.4 moet een C gescoord worden. "]
[{"$nulls":4},"A. Organisatie",{"$nulls":7},"NC= Niet Conform",{"$nulls":4},"Bij het scoren van een NC op deze onderdelen is de uitkomst van de"]
[{"$nulls":17},"toets negatief."]
[]
[null,null,null,"3.1","Zijn alle in de praktijk werkzame logopedisten kwaliteitsgeregistreerd* in het ",{"$nulls":12},"Op de onderdelen 3.3, 3.5, 3.6 mag 1 keer een NC "]
[{"$nulls":4},"kwaliteitsregister paramedici?",{"$nulls":12},"gescoord worden."]
[{"$nulls":4},"*) Er wordt gesproken van de status kwaliteitsgeregistreerd als voldaan is aan de opleidingseisen en ",{"$nulls":12},"Bij het scoren van meer dan één  NC op deze onderdelen is de"]
[{"$nulls":4},"aan de door de NVLF gestelde kwaliteitseisen (herregistratie per 5 jaar).",{"$nulls":12},"uitkomst van de toets negatief."]
[]
[{"$nulls":4},"Meer info ","www.kwaliteitsregisterparamedici.nl ",{"$nulls":6},"Score zie vraag 3.4",{"$nulls":13},"C"]
[{"$nulls":26},"NC"]
[null,null,null,"3.2","Alle logopedisten werkzaam in de praktijk zijn aangesloten bij een geschillencommissie",{"$nulls":21},"NVT"]
[{"$nulls":4}," voor patiënten?*"]
[{"$nulls":4},"*) Vanaf 1-1-2017 is voor leden van de NVLF aansluiting bij een geschillencommissie geregeld via het"]
[{"$nulls":4}," Kwaliteitsregister Paramedici.",{"$nulls":21},"ja"]
[{"$nulls":26},"nee"]
[{"$nulls":4},"Meer info,","Dossier Wkkgz ",{"$nulls":6},"Score zie vraag 3.4"]
[{"$nulls":5},"www.klachtenloketparamedici.nl"]
[null,null,null,"3.3","Heeft de praktijk een meldcode kindermishandeling en huiselijk geweld opgesteld?"]
[]
[{"$nulls":4},"Meer info","Dossier kindermishandeling en huiselijk geweld"]
[{"$nulls":12},"Score zie vraag 3.6"]
[]
[null,null,null,"3.4","Heeft de praktijk een (schriftelijke) klachtenregeling / klachtenprocedure? "]
[]
[{"$nulls":4},"Meer info","Patientenklachtrecht"]
[{"$nulls":10},"Score 3.1, 3.2 en 3.4 \"C\" minimaal 3 uit 3",null,null,{"$f":"COUNTIF(N10, \"C\")+COUNTIF(N17, \"C\")+COUNTIF(N29, \"C\")","v":0}]
[]
[]
[null,null,null,"3.5","Kan de praktijk aantonen dat de continuïteit van de logopedische zorg is gewaarborgd?"]
[{"$nulls":4},"Toelichting: het gaat erom dat de auditor kan zien dat er concrete afspraken zijn over vervanging van logopedisten bij"]
[{"$nulls":4}," afwezigheid. Dit kan bijvoorbeeld digitaal vastgelegd worden of op papier. Denk bijvoorbeeld aan "]
[{"$nulls":4},"afspraken met leden uit de kwaliteitskring of met andere collega’s om elkaar te vervangen bij ziekte of verlof."]
[]
[{"$nulls":4},"Meer info, ","Logopedische standaarden 1e lijn, blz 18",{"$nulls":6},"Score zie vraag 3.6"]
[]
[null,null,null,"3.6","Staan alle vestigingen van de praktijk correct geregistreerd bij Vektis?"]
[]
[{"$nulls":4},"Meer info, ","Logopedische standaarden 1e lijn, onderdeel Beheer."]
[]
[{"$nulls":10},"Score 3.3, 3.5, 3.6  \"NC\" max 1 uit 3",null,null,{"$f":"COUNTIF(N24, \"NC\")+COUNTIF(N35, \"NC\")+COUNTIF(N42, \"NC\")","v":0}]
[]
[]
[]
[{"$nulls":4},"B. Privacy en veiligheid",{"$nulls":12},"Normering onderdeel B. Privacy en veiligheid"]
[]
[{"$nulls":17},"Op de onderdelen 3.7 en 3.8 mag één NC gescoord worden. "]
[null,null,null,"3.7","Kan aangetoond worden dat de rechten van de patiënt conform de WGBO aan de patiënt ",{"$nulls":12},"Bij het scoren van meer dan één NC op deze onderdelen is "]
[{"$nulls":4},"kenbaar worden gemaakt?",{"$nulls":12},"de uitkomst van de toets negatief."]
[]
[{"$nulls":4},"Meer info","Dossier Wet- en Regelgeving",{"$nulls":7},"START",null,null,null,"Op onderdeel 3.9 moet C gescoord worden. Bij het scoren van "]
[{"$nulls":5},"Praktijkvoering",{"$nulls":11},"een NC op dit onderdeel is de uitkomst van de toets negatief."]
[]
[null,null,null,"3.8","Worden patiëntdossiers bewaard conform de privacywetgeving?",{"$nulls":12},"Als op de onderdelen 3.10 en 3.11 sprake is van een NC op 1 of meer"]
[{"$nulls":17},"onderdelen, dan heeft dit geen effect op de uitkomst van de toets."]
[{"$nulls":4},"Meer info","Dossier Wet- en Regelgeving",{"$nulls":7},"START"]
[]
[{"$nulls":11},"Score \"NC\" max 1 uit 2",null,{"$f":"COUNTIFS(N53:N59, \"NC\")","v":0}]
[]
[null,null,null,"3.9","Is de praktijk ingericht conform de inrichtingseisen van de NVLF?"]
[]
[{"$nulls":4},"Meer info, ","Inrichtingseisen",{"$nulls":7},"START"]
[]
[{"$nulls":11},"Score \"C\" minimaal 1 uit 1",null,{"$f":"COUNTIF(N65, \"C\")","v":0}]
[]
[null,null,null,"3.10","Is er een plan beschikbaar  in geval van calamiteiten?"]
[]
[{"$nulls":4},"Meer info","Format Calamiteitenplan",{"$nulls":7},"START"]
[]
[null,null,null,"3.11","Zijn er voorzieningen beschikbaar in geval van calamiteiten?*"]
[{"$nulls":4},"*) het betreft hier minimaal de voorzieningen, blus- EHBO-middelen "]
[{"$nulls":13},"START"]
[]
[{"$nulls":10},"Score 3.10 en 3.11  \"NC\" geen effect",null,null,{"$f":"COUNTIFS(N71:N75, \"NC\")","v":0}]

{"sheet":"vraag 1.1-1.2","index":4,"n_rows":50,"n_cols":45,"rows_kept":50,"cut":false,"hidden":false,"merged":[]}
[]
[null,null,"Deel 1 Methodisch logopedisch handelen/dossiertoets",{"$nulls":27},"Terug naar Audit Checklist deel 1 - klik",{"$nulls":9},"HIER"]
[]
[null,null,"A. Aanmelding na verwijzing",{"$nulls":7},"Vraag 1.1 - Zijn de relevante gegevens aanwezig in het dossier?"]
[]
[null,null,"Persoonsgegevens cliënt",{"$nulls":9},1,null,2,null,3,null,4,null,5,null,6,null,7,null,8,null,9,null,10,null,11,null,12,null,13,null,14,null,15]
[null,null,"Naam cliënt "]
[null,null,"Geboortedatum cliënt"]
[null,null,"Geslacht cliënt"]
[null,null,"Legitimatie op orde (ja/nee)"]
[null,null,"BSN cliënt"]
[]
[null,null,"Gegevens contactpersoon",{"$nulls":9},1,null,2,null,3,null,4,null,5,null,6,null,7,null,8,null,9,null,10,null,11,null,12,null,13,null,14,null,15]
[null,null,"Naam contactpersoon"]
[]
[null,null,"Verzekeringsgegevens client",{"$nulls":9},1,null,2,null,3,null,4,null,5,null,6,null,7,null,8,null,9,null,10,null,11,null,12,null,13,null,14,null,15]
[null,null,"Naam zorgverzekeraar"]
[null,null,"Nummer zorgverzekeraar (UZOVI)"]
[null,null,"Indicatie ongeval"]
[]
[null,null,"Gegevens behandelend logopedist",{"$nulls":9},1,null,2,null,3,null,4,null,5,null,6,null,7,null,8,null,9,null,10,null,11,null,12,null,13,null,14,null,15]
[null,null,"Naam logopedist"]
[null,null,"Nummer logopedist (AGB-code)"]
[]
[null,null,"Gegevens huisarts",{"$nulls":9},1,null,2,null,3,null,4,null,5,null,6,null,7,null,8,null,9,null,10,null,11,null,12,null,13,null,14,null,15]
[null,null,"Naam huisarts"]
[null,null,"Nummer huisarts (AGB-code)"]
[]
[null,null,"Gegevens verwijzer",{"$nulls":9},1,null,2,null,3,null,4,null,5,null,6,null,7,null,8,null,9,null,10,null,11,null,12,null,13,null,14,null,15]
[null,null,"Naam verwijzer"]
[null,null,"Specialisme verwijzer"]
[null,null,"Nummer verwijzer (AGB-code)"]
[]
[null,null,"Verwijsgegevens",{"$nulls":9},1,null,2,null,3,null,4,null,5,null,6,null,7,null,8,null,9,null,10,null,11,null,12,null,13,null,14,null,15]
[null,null,"Verwijsdatum"]
[null,null,"Verwijsdiagnose / verwijsindicatie"]
[null,null,"Gerichte schriftelijke vraag van verwijzer"]
[null,null," voor eenmalig logopedisch onderzoek",{"$nulls":39},"Minimaal"]
[{"$nulls":42},{"$f":"0.8*AS39","v":4},"uit",{"$f":"'Deel 1'!X28","v":5}]
[null,null,"Score \"Conform\" (19 vragen)",{"$nulls":9},{"$f":"COUNTIF(M7:M37, \"C\")+COUNTIF(M7:M37, \"NVT\")","v":0},null,{"$f":"COUNTIF(O7:O37, \"C\")+COUNTIF(O7:O37, \"NVT\")","v":0},null,{"$f":"COUNTIF(Q7:Q37, \"C\")+COUNTIF(Q7:Q37, \"NVT\")","v":0},null,{"$f":"COUNTIF(S7:S37, \"C\")+COUNTIF(S7:S37, \"NVT\")","v":0},null,{"$f":"COUNTIF(U7:U37, \"C\")+COUNTIF(U7:U37, \"NVT\")","v":0},null,{"$f":"COUNTIF(W7:W37, \"C\")+COUNTIF(W7:W37, \"NVT\")","v":0},null,{"$f":"COUNTIF(Y7:Y37, \"C\")+COUNTIF(Y7:Y37, \"NVT\")","v":0},null,{"$f":"COUNTIF(AA7:AA37, \"C\")+COUNTIF(AA7:AA37, \"NVT\")","v":0},null,{"$f":"COUNTIF(AC7:AC37, \"C\")+COUNTIF(AC7:AC37, \"NVT\")","v":0},null,{"$f":"COUNTIF(AE7:AE37, \"C\")+COUNTIF(AE7:AE37, \"NVT\")","v":0},null,{"$f":"COUNTIF(AG7:AG37, \"C\")+COUNTIF(AG7:AG37, \"NVT\")","v":0},null,{"$f":"COUNTIF(AI7:AI37, \"C\")+COUNTIF(AI7:AI37, \"NVT\")","v":0},null,{"$f":"COUNTIF(AK7:AK37, \"C\")+COUNTIF(AK7:AK37, \"NVT\")","v":0},null,{"$f":"COUNTIF(AM7:AM37, \"C\")+COUNTIF(AM7:AM37, \"NVT\")","v":0},null,{"$f":"COUNTIF(AO7:AO37, \"C\")+COUNTIF(AO7:AO37, \"NVT\")","v":0},null,{"$f":"COUNTIF(M40:AO40, \"25\")","v":0}]
[null,null,"Score \"Conform\" %",{"$nulls":9},{"$f":"M40/19*100","v":0},null,{"$f":"O40/19*100","v":0},null,0,null,0,null,0,null,0,null,0,null,0,null,0,null,0,null,0,null,0,null,0,null,0,null,0]
[]
[{"$nulls":30},"Terug naar Audit Checklist vraag 1.1  - klik",{"$nulls":9},"HIER"]
[]
[null,null,"A. Aanmelding na verwijzing",{"$nulls":9},"Vraag 1.2 - Is de toestemming van de patiënt voor overleg met derden vastgelegd?"]
[{"$nulls":42},"Minimaal"]
[null,null,"Toestemming patient",{"$nulls":9},1,null,2,null,3,null,4,null,5,null,6,null,7,null,8,null,9,null,10,null,11,null,12,null,13,null,14,null,15,null,{"$f":"0.8*AS47","v":4},"uit",{"$f":"'Deel 1'!X28","v":5}]
[{"$nulls":42},{"$f":"COUNTIF(M48:AO48, \"C\")","v":0}]
[]
[{"$nulls":30},"Terug naar Audit Checklist vraag 1.2 - klik",{"$nulls":9},"HIER"]

{"sheet":"vraag 1.3 - 1.5","index":5,"n_rows":41,"n_cols":45,"rows_kept":41,"cut":false,"hidden":false,"merged":[]}
[]
[null,null,"Deel 1 Methodisch logopedisch handelen/dossiertoets",{"$nulls":27},"Terug naar Audit Checklist deel 1 - klik",{"$nulls":8},"Hier"]
[]
[null,null,"A. Aanmelding / DTL screening",{"$nulls":7},"Vraag 1.3 Zijn de relevante gegevens aanwezig in het dossier?"]
[]
[null,null,"1.3 - Persoonsgegevens cliënt",{"$nulls":9},1,null,2,null,3,null,4,null,5,null,6,null,7,null,8,null,9,null,10,null,11,null,12,null,13,null,14,null,15]
[null,null,"Naam cliënt "]
[null,null,"Geboortedatum cliënt"]
[null,null,"Geslacht cliënt"]
[null,null,"Legitimatie op orde (ja/nee)"]
[null,null,"BSN cliënt"]
[]
[null,null,"1.3 - Gegevens contactpersoon",{"$nulls":9},1,null,2,null,3,null,4,null,5,null,6,null,7,null,8,null,9,null,10,null,11,null,12,null,13,null,14,null,15]
[null,null,"Naam contactpersoon"]
[]
[null,null,"1.3 - Verzekeringsgegevens client",{"$nulls":9},1,null,2,null,3,null,4,null,5,null,6,null,7,null,8,null,9,null,10,null,11,null,12,null,13,null,14,null,15]
[null,null,"Naam zorgverzekeraar"]
[null,null,"Nummer zorgverzekeraar (UZOVI)"]
[null,null,"Indicatie ongeval"]
[]
[null,null,"1.3 - Gegevens behandelend logopedist",{"$nulls":9},1,null,2,null,3,null,4,null,5,null,6,null,7,null,8,null,9,null,10,null,11,null,12,null,13,null,14,null,15]
[null,null,"Naam logopedist"]
[null,null,"Nummer logopedist (AGB-code)"]
[]
[null,null,"1.3 - Gegevens huisarts",{"$nulls":9},1,null,2,null,3,null,4,null,5,null,6,null,7,null,8,null,9,null,10,null,11,null,12,null,13,null,14,null,15]
[null,null,"Naam huisarts"]
[]
[{"$nulls":42},"Minimaal"]
[{"$nulls":42},{"$f":"0.8*AS29","v":4},"uit",{"$f":"'Deel 1'!X28","v":5}]
[null,null,"Score \"Non Conform\" (12 vragen)",{"$nulls":9},{"$f":"COUNTIF(M7:M26, \"C\")+COUNTIF(M7:M26, \"NVT\")","v":0},null,{"$f":"COUNTIF(O7:O26, \"C\")+COUNTIF(O7:O26, \"NVT\")","v":0},null,0,null,0,null,0,null,0,null,0,null,0,null,0,null,0,null,0,null,0,null,0,null,0,null,0,null,{"$f":"COUNTIF(M30:AO30, \"32\")","v":0}]
[null,null,"Score \"Conform\" %",{"$nulls":9},{"$f":"M30/12*100","v":0},null,{"$f":"O30/12*100","v":0},null,0,null,0,null,0,null,0,null,0,null,0,null,0,null,0,null,0,null,0,null,0,null,0,null,0]
[]
[{"$nulls":30},"Terug naar Audit Checklist vraag 1.3 - klik",{"$nulls":9},"Hier"]
[null,null,"A. Aanmelding / DTL screening",{"$nulls":9},"Vraag 1.4 - 1.5"]
[{"$nulls":42},"Minimaal"]
[null,null,"Vraag 1.4 - 1.7",{"$nulls":9},1,null,2,null,3,null,4,null,5,null,6,null,7,null,8,null,9,null,10,null,11,null,12,null,13,null,14,null,15,null,{"$f":"0.8*AS36","v":4},"uit",{"$f":"'Deel 1'!X28","v":5}]
[null,null,"1.4 Conclusie DTL-screening (Pluis / Niet pluis) vastgelegd?",{"$nulls":39},{"$f":"COUNTIF(M37:AO37, \"C\")","v":0}]
[null,null,"1.5 Toestemming patient voor overleg met de arts ",{"$nulls":39},{"$f":"COUNTIF(M38:AO38, \"C\")","v":0}]
[null,null,"vastgelegd?"]
[]
[{"$nulls":28},"Terug naar Audit Checklist vraag 1.4 - 1.5 - klik",{"$nulls":11},"Hier"]

{"sheet":"vraag 1.6 - 1.15","index":6,"n_rows":92,"n_cols":45,"rows_kept":92,"cut":false,"hidden":false,"merged":[]}
[]
[null,null,"Deel 1 Methodisch logopedisch handelen/dossiertoets"]
[]
[null,null,"B. Anamnese",{"$nulls":27},"Terug naar Audit Checklist deel 1 - klik",{"$nulls":8},"HIER"]
[{"$nulls":42},"Minimaal"]
[null,null,"Vraag 1.6  ",{"$nulls":9},1,null,2,null,3,null,4,null,5,null,6,null,7,null,8,null,9,null,10,null,11,null,12,null,13,null,14,null,15,null,{"$f":"0.8*AS6","v":4},"uit",{"$f":"'Deel 1'!X28","v":5}]
[null,null,"1.6   Contactreden / hulpvraag vastgelegd?",{"$nulls":39},{"$f":"COUNTIF(M7:AO7, \"C\")","v":0}]
[]
[]
[]
[null,null,"C. Onderzoek",{"$nulls":25},"            Terug naar Audit Checklist vraag 1.6 klik",{"$nulls":10},"HIER"]
[{"$nulls":42},"Minimaal"]
[null,null,"Vraag  1.7",{"$nulls":9},1,null,2,null,3,null,4,null,5,null,6,null,7,null,8,null,9,null,10,null,11,null,12,null,13,null,14,null,15,null,{"$f":"0.8*AS13","v":4},"uit",{"$f":"'Deel 1'!X28","v":5}]
[null,null,"1.7   ","Zijn de onderzoeksgegevens vastgelegd?",{"$nulls":38},{"$f":"COUNTIF(M14:AO14, \"C\")","v":0}]
[]
[]
[{"$nulls":28},"Terug naar Audit Checklist vraag 1.7 -  klik",{"$nulls":11},"HIER"]
[]
[null,null,"D. Analyse",{"$nulls":9},"Vraag 1.8 - Is de logopedische diagnose/conclusie vastgelegd?"]
[]
[null,null,"Vraag 1.8 - diagnose/conclusie vastgelegd?",{"$nulls":9},1,null,2,null,3,null,4,null,5,null,6,null,7,null,8,null,9,null,10,null,11,null,12,null,13,null,14,null,15]
[null,null,"Evt. stoornissen, beperkingen en participatieproblemen;"]
[null,null,"Niet aangedane of juist bijzonder goede functies, "]
[null,null,"Antaomische eigenschappen, activiteiten en particpatie;"]
[null,null,"Relevante medische, extrene em persoonlijke factoren;"]
[null,null,"(onderdelen van) contactreden / hulpvraag ",{"$nulls":39},"Minimaal"]
[null,null,"(indien relevant).",{"$nulls":39},{"$f":"0.8*AS27","v":4},"uit",{"$f":"'Deel 1'!X28","v":5}]
[null,null,"Score 1.8 \"Conform\" (5 vragen)",{"$nulls":9},{"$f":"COUNTIF(M22:M26, \"C\")+COUNTIF(M22:M26, \"NVT\")","v":0},null,{"$f":"COUNTIF(O22:O26, \"C\")+COUNTIF(O22:O26, \"NVT\")","v":0},null,{"$f":"COUNTIF(Q22:Q26, \"C\")+COUNTIF(Q22:Q26, \"NVT\")","v":0},null,{"$f":"COUNTIF(S22:S26, \"C\")+COUNTIF(S22:S26, \"NVT\")","v":0},null,{"$f":"COUNTIF(U22:U26, \"C\")+COUNTIF(U22:U26, \"NVT\")","v":0},null,{"$f":"COUNTIF(W22:W26, \"C\")+COUNTIF(W22:W26, \"NVT\")","v":0},null,{"$f":"COUNTIF(Y22:Y26, \"C\")+COUNTIF(Y22:Y26, \"NVT\")","v":0},null,{"$f":"COUNTIF(AA22:AA26, \"C\")+COUNTIF(AA22:AA26, \"NVT\")","v":0},null,{"$f":"COUNTIF(AC22:AC26, \"C\")+COUNTIF(AC22:AC26, \"NVT\")","v":0},null,{"$f":"COUNTIF(AE22:AE26, \"C\")+COUNTIF(AE22:AE26, \"NVT\")","v":0},null,{"$f":"COUNTIF(AG22:AG26, \"C\")+COUNTIF(AG22:AG26, \"NVT\")","v":0},null,{"$f":"COUNTIF(AI22:AI26, \"C\")+COUNTIF(AI22:AI26, \"NVT\")","v":0},null,{"$f":"COUNTIF(AK22:AK26, \"C\")+COUNTIF(AK22:AK26, \"NVT\")","v":0},null,{"$f":"COUNTIF(AM22:AM26, \"C\")+COUNTIF(AM22:AM26, \"NVT\")","v":0},null,{"$f":"COUNTIF(AO22:AO26, \"C\")+COUNTIF(AO22:AO26, \"NVT\")","v":0},null,{"$f":"COUNTIF(M28:AO28, \"5\")","v":0}]
[]
[]
[{"$nulls":28},"Terug naar Audit Checklist vraag 1.8 - klik",{"$nulls":11},"HIER"]
[]
[null,null,"E. Behandelplan"]
[]
[null,null,"Vraag 1.9 Is het beoogde resultaat / hoofddoel voor"]
[{"$nulls":4},"een periode van max 6 maanden vastgelegd?",{"$nulls":7},1,null,2,null,3,null,4,null,5,null,6,null,7,null,8,null,9,null,10,null,11,null,12,null,13,null,14,null,15]
[null,null,null,"Specifiek"]
[null,null,null,"Meetbaar"]
[null,null,null,"Acceptabel"]
[null,null,null,"Realistisch"]
[null,null,null,"Tijdgebonden",{"$nulls":38},"Minimaal"]
[{"$nulls":42},{"$f":"0.8*AS42","v":4},"uit",{"$f":"'Deel 1'!X28","v":5}]
[null,null,"Score 1.9 \"Conform\" (5 vragen)",{"$nulls":9},{"$f":"COUNTIF(M37:M41, \"C\")","v":0},null,{"$f":"COUNTIF(O37:O41, \"C\")","v":0},null,{"$f":"COUNTIF(Q37:Q41, \"C\")","v":0},null,{"$f":"COUNTIF(S37:S41, \"C\")","v":0},null,{"$f":"COUNTIF(U37:U41, \"C\")","v":0},null,{"$f":"COUNTIF(W37:W41, \"C\")","v":0},null,{"$f":"COUNTIF(Y37:Y41, \"C\")","v":0},null,{"$f":"COUNTIF(AA37:AA41, \"C\")","v":0},null,{"$f":"COUNTIF(AC37:AC41, \"C\")","v":0},null,{"$f":"COUNTIF(AE37:AE41, \"C\")","v":0},null,{"$f":"COUNTIF(AG37:AG41, \"C\")","v":0},null,{"$f":"COUNTIF(AI37:AI41, \"C\")","v":0},null,{"$f":"COUNTIF(AK37:AK41, \"C\")","v":0},null,{"$f":"COUNTIF(AM37:AM41, \"C\")","v":0},null,{"$f":"COUNTIF(AO37:AO41, \"C\")","v":0},null,{"$f":"COUNTIF(M43:AO43, \"3\")","v":0}]
[]
[null,null,"Vraag 1.10  Akkoord patiënt behandelplan vastgelegd?",{"$nulls":9},1,null,2,null,3,null,4,null,5,null,6,null,7,null,8,null,9,null,10,null,11,null,12,null,13,null,14,null,15,null,{"$f":"0.8*AS45","v":4},"uit",{"$f":"'Deel 1'!X28","v":5}]
[{"$nulls":42},{"$f":"COUNTIF(M46:AO46, \"C\")","v":0}]
[{"$nulls":28},"Terug naar Audit Checklist vraag 1.9 - 1.10 - klik",{"$nulls":11},"HIER"]
[null,null,"F. Behandeling"]
[]
[null,null,"Vraag 1.11 - Gegevens uitgevoerde behandeling ",{"$nulls":9},1,null,2,null,3,null,4,null,5,null,6,null,7,null,8,null,9,null,10,null,11,null,12,null,13,null,14,null,15]
[null,null,"vastgelegd? (subvragen)"]
[null,null,"Datum sessie"]
[null,null,"Afspraken met patiënt"]
[null,null,"Uitgevoerde verrichtingen/prestatie",{"$nulls":39},"Minimaal"]
[{"$nulls":42},{"$f":"0.8*AS55","v":4},"uit",{"$f":"'Deel 1'!X28","v":5}]
[null,null,"Score 1.11 \"Conform\" (3 vragen)",{"$nulls":9},{"$f":"COUNTIFS(M52:M54, \"C\")","v":0},null,{"$f":"COUNTIFS(O52:O54, \"C\")","v":0},null,{"$f":"COUNTIFS(Q52:Q54, \"C\")","v":0},null,{"$f":"COUNTIFS(S52:S54, \"C\")","v":0},null,{"$f":"COUNTIFS(U52:U54, \"C\")","v":0},null,{"$f":"COUNTIFS(W52:W54, \"C\")","v":0},null,{"$f":"COUNTIFS(Y52:Y54, \"C\")","v":0},null,{"$f":"COUNTIFS(AA52:AA54, \"C\")","v":0},null,{"$f":"COUNTIFS(AC52:AC54, \"C\")","v":0},null,{"$f":"COUNTIFS(AE52:AE54, \"C\")","v":0},null,{"$f":"COUNTIFS(AG52:AG54, \"C\")","v":0},null,{"$f":"COUNTIFS(AI52:AI54, \"C\")","v":0},null,{"$f":"COUNTIFS(AK52:AK54, \"C\")","v":0},null,{"$f":"COUNTIFS(AM52:AM54, \"C\")","v":0},null,{"$f":"COUNTIFS(AO52:AO54, \"C\")","v":0},null,{"$f":"COUNTIF(M56:AO56, \"3\")","v":0}]
[]
[{"$nulls":28},"Terug naar Audit Checklist vraag 1.11 - klik",{"$nulls":11},"HIER"]
[null,null,"G. Evaluatie"]
[{"$nulls":42},"Minimaal"]
[null,null,"Vraag 1.12 - Is een eindevaluatie vastgelegd?",{"$nulls":9},1,null,2,null,3,null,4,null,5,null,6,null,7,null,8,null,9,null,10,null,11,null,12,null,13,null,14,null,15,null,{"$f":"0.8*AS61","v":4},"uit",{"$f":"'Deel 1'!X28","v":5}]
[{"$nulls":42},{"$f":"COUNTIF(M62:AO62, \"C\")","v":0}]
[]
[{"$nulls":42},"Minimaal"]
[null,null,"Vraag 1.13 - Is een evaluatie uitgevoerd binnen max 6",{"$nulls":9},1,null,2,null,3,null,4,null,5,null,6,null,7,null,8,null,9,null,10,null,11,null,12,null,13,null,14,null,15,null,{"$f":"0.8*AS65","v":4},"uit",{"$f":"'Deel 1'!X28","v":5}]
[{"$nulls":4},"  maanden na de vorige evaluatie?",{"$nulls":37},{"$f":"COUNTIF(M66:AO66, \"C\")","v":0}]
[]
[]
[null,null,"Vraag 1.14 Is een jaarlijkse rapportage aan verwijzer / "]
[{"$nulls":4},"behandelend arts geschreven? ",{"$nulls":7},1,null,2,null,3,null,4,null,5,null,6,null,7,null,8,null,9,null,10,null,11,null,12,null,13,null,14,null,15]
[{"$nulls":4},"Het verslag bevat minimaal de volgende gegevens:"]
[null,null,"Medische diagnose en/of hulpvraag"]
[null,null,"Logopedische diagnose"]
[null,null,"Hulpvraag patient"]
[null,null,"behandeldoel(en)"]
[null,null,"Evaluatie",{"$nulls":39},"Minimaal"]
[null,null,"Voorstel voor vervolg (afsluiten, voortzetten)"]
[{"$nulls":42},{"$f":"0.8*AS78","v":4},"uit",{"$f":"'Deel 1'!X28","v":5}]
[null,null,"Score 1.14 \"Conform\" (5 vragen)",{"$nulls":9},{"$f":"COUNTIF(M72:M77, \"C\")","v":0},null,{"$f":"COUNTIF(O72:O77, \"C\")","v":0},null,{"$f":"COUNTIF(Q72:Q77, \"C\")","v":0},null,{"$f":"COUNTIF(S72:S77, \"C\")","v":0},null,{"$f":"COUNTIF(U72:U77, \"C\")","v":0},null,{"$f":"COUNTIF(W72:W77, \"C\")","v":0},null,{"$f":"COUNTIF(Y72:Y77, \"C\")","v":0},null,{"$f":"COUNTIF(AA72:AA77, \"C\")","v":0},null,{"$f":"COUNTIF(AC72:AC77, \"C\")","v":0},null,{"$f":"COUNTIF(AE72:AE77, \"C\")","v":0},null,{"$f":"COUNTIF(AG72:AG77, \"C\")","v":0},null,{"$f":"COUNTIF(AI72:AI77, \"C\")","v":0},null,{"$f":"COUNTIF(AK72:AK77, \"C\")","v":0},null,{"$f":"COUNTIF(AM72:AM77, \"C\")","v":0},null,{"$f":"COUNTIF(AO72:AO77, \"C\")","v":0},null,{"$f":"COUNTIF(M79:AO79, \"6\")","v":0}]
[]
[{"$nulls":28},"Terug naar Audit Checklist vraag 1.12 - 1.14 klik",{"$nulls":11},"HIER"]
[null,null,"H.  Afsluiting"]
[]
[null,null,"Vraag 1.15 - Zijn de gegevens over afsluiting vastgelegd?"]
[{"$nulls":12},1,null,2,null,3,null,4,null,5,null,6,null,7,null,8,null,9,null,10,null,11,null,12,null,13,null,14,null,15]
[null,null,"Datum afsluiting"]
[null,null,"Nazorg/afspraken"]
[null,null,"Reden einde zorg",{"$nulls":39},"Minimaal"]
[{"$nulls":42},{"$f":"0.8*AS89","v":4},"uit",{"$f":"'Deel 1'!X28","v":5}]
[null,null,"Score 1.15 \"Conform\" (4 vragen)",{"$nulls":9},{"$f":"COUNTIFS(M86:M88, \"C\")","v":0},null,{"$f":"COUNTIFS(O86:O88, \"C\")","v":0},null,{"$f":"COUNTIFS(Q86:Q88, \"C\")","v":0},null,{"$f":"COUNTIFS(S86:S88, \"C\")","v":0},null,{"$f":"COUNTIFS(U86:U88, \"C\")","v":0},null,{"$f":"COUNTIFS(W86:W88, \"C\")","v":0},null,{"$f":"COUNTIFS(Y86:Y88, \"C\")","v":0},null,{"$f":"COUNTIFS(AA86:AA88, \"C\")","v":0},null,{"$f":"COUNTIFS(AC86:AC88, \"C\")","v":0},null,{"$f":"COUNTIFS(AE86:AE88, \"C\")","v":0},null,{"$f":"COUNTIFS(AG86:AG88, \"C\")","v":0},null,{"$f":"COUNTIFS(AI86:AI88, \"C\")","v":0},null,{"$f":"COUNTIFS(AK86:AK88, \"C\")","v":0},null,{"$f":"COUNTIFS(AM86:AM88, \"C\")","v":0},null,{"$f":"COUNTIFS(AO86:AO88, \"C\")","v":0},null,{"$f":"COUNTIF(M90:AO90, \"4\")","v":0}]
[]
[{"$nulls":29},"Terug naar Audit Checklist vraag 1.15 - klik",{"$nulls":10},"HIER"]

{"sheet":"vraag 2.2 - 2.4","index":7,"n_rows":70,"n_cols":35,"rows_kept":70,"cut":false,"hidden":false,"merged":[]}
[]
[null,null,"Deel 2 NVLF richtlijn"]
[]
[null,null,"2.2 Logopedie bij de ziekte van Parkinson",{"$nulls":23},"Terug naar Audit Checklist deel 2 - klik",{"$nulls":7},"HIER"]
[]
[null,null,"2.2 - Subvragen a t/m e",{"$nulls":25},1,null,2]
[null,null,"a","Ik beoordeel zowel het spontane spreken als de stimuleerbaarheid van het spreken met maximale"]
[null,null,null,"prestatietests."]
[]
[null,null,"b","Ik ben er in het algemeen zeker van dat de patiënt die ik geschikt acht voor de volledige PLVT-behandeling, "]
[null,null,null,"overwegend een hypokinetische dysartrie heeft."]
[]
[null,null,"c","Ik gebruik een hulpmiddel (dB-meter, audio- of video-opname) om de patiënt feedback te kunnen geven over de "]
[null,null,null,"intensiteit van zijn spreken."]
[]
[null,null,"d","Ik behandel patiënten die geïndiceerd zijn voor de volledige behandeling met PLVT (LSVT) tenminste 3x in de week "]
[null,null,null,"gedurende tenminste 4 weken."]
[]
[null,null,"e","Ik ga bij verslikken na of de invloed van een dubbeltaak kan worden voorkomen."]
[]
[null,null,"Score \"NVT\" is toelaatbaar mits aantoonbaar gemotiveerd is afgeweken van het gebruik van de richtlijn.",{"$nulls":29},"Minimaal"]
[{"$nulls":32},"2 uit 2"]
[null,null,"Score 2.2 \"Conform\" of \"NVT\" (minimaal 3 uit 5)",{"$nulls":25},{"$f":"COUNTIF(AC7:AC19, \"C\")+COUNTIF(AC7:AC19, \"NVT\")","v":0},null,{"$f":"COUNTIF(AE7:AE19, \"C\")+COUNTIF(AE7:AE19, \"NVT\")","v":0},null,{"$f":"COUNTIF(AC23:AE23, \">2\")","v":0}]
[]
[null,null,"2.3 Is in de dossiers aantoonbaar dat de in de richtlijn geadviseerde meetinstrumenten ** systematisch (> 1x) worden ingezet?"]
[]
[null,null,"**) = onder meetinstrumenten wordt verstaan het gebruik van vragenlijsten en performance testen.",{"$nulls":21},"Aanbeveling",null,null,null,9,null,10]
[null,null,"Het gaat bij dit criterium om aanbevelingen 9 en 10 uit de richtlijn Stotteren bij kinderen, "]
[null,null,"adolescenten en volwassen (NVLF, 2014).",{"$nulls":21},"Dossier 1"]
[{"$nulls":24},"Dossier 2"]
[null,null,"Score \"NVT\" is toelaatbaar mits aantoonbaar gemotiveerd is afgeweken van het gebruik van de richtlijn.",{"$nulls":29},"Minimaal"]
[{"$nulls":32},"2 uit 2"]
[null,null,"Score 2.3  Richtlijn STOTTEREN \"Conform\" of \"NVT\" (minimaal 2 uit 2)",{"$nulls":25},{"$f":"COUNTIF(AC29:AC30, \"C\")+COUNTIF(AC29:AC30, \"NVT\")","v":0},null,{"$f":"COUNTIF(AE29:AE30, \"C\")+COUNTIF(AE29:AE30, \"NVT\")","v":0},null,{"$f":"COUNTIF(AC33:AE33, \"2\")","v":0}]
[]
[null,null,"**) = onder meetinstrumenten wordt verstaan het gebruik van vragenlijsten en performance testen.",{"$nulls":19},"Aanbeveling",null,null,null,1,null,2,null,3]
[null,null,"Het gaat bij dit criterium om aanbevelingen 1, 2 en 3 uit de richtlijn Diagnostiek en behandeling "]
[null,null,"bij afasie (NVLF, 2015).",{"$nulls":19},"Dossier 1"]
[null,null,"Score \"NVT\" is toelaatbaar mits aantoonbaar gemotiveerd is afgeweken van het gebruik van de richtlijn.",{"$nulls":19},"Dossier 2",{"$nulls":9},"Minimaal"]
[{"$nulls":32},"3 uit3"]
[null,null,"Score 2.3 Richtlijn AFASIE  \"Conform\" of \"NVT\" (minimaal 3 uit 3)",{"$nulls":23},{"$f":"COUNTIF(AA37:AA38, \"C\")+COUNTIF(AA37:AA38, \"NVT\")","v":0},null,{"$f":"COUNTIF(AC37:AC38, \"C\")+COUNTIF(AC37:AC38, \"NVT\")","v":0},null,{"$f":"COUNTIF(AE37:AE38, \"C\")+COUNTIF(AE37:AE38, \"NVT\")","v":0},null,{"$f":"COUNTIF(AA40:AE40, \"2\")","v":0}]
[]
[null,null,"2.4 Is in de dossiers aantoonbaar dat de in de richtlijn geadviseerde behandeladviezen systematisch worden ingezet? "]
[]
[null,null,"Het gaat bij dit criterium om aanbevelingen 2, 3, 5, 11, 14, 16, 19, 20, 22, 23, 25 uit de richtlijn STOTTEREN bij kinderen, adolescenten en volwassen (NVLF, 2014)."]
[]
[null,null,"Score \"NVT\" is toelaatbaar mits aantoonbaar gemotiveerd is afgeweken van het gebruik van de richtlijn."]
[]
[{"$nulls":6},"Aanbeveling",null,null,null,2,null,3,null,5,null,11,null,14,null,16,null,19,null,20,null,22,null,23,null,25]
[]
[{"$nulls":6},"Dossier 1"]
[{"$nulls":6},"Dossier 2",{"$nulls":25},"Minimaal"]
[{"$nulls":32},"11 uit 11"]
[null,null,"Score 2.4 \"Conform\" of \"NVT\"",{"$nulls":7},{"$f":"COUNTIF(K50:K51, \"C\")+COUNTIF(K50:K51, \"NVT\")","v":0},null,{"$f":"COUNTIF(M50:M51, \"C\")+COUNTIF(M50:M51, \"NVT\")","v":0},null,{"$f":"COUNTIF(O50:O51, \"C\")+COUNTIF(O50:O51, \"NVT\")","v":0},null,{"$f":"COUNTIF(Q50:Q51, \"C\")+COUNTIF(Q50:Q51, \"NVT\")","v":0},null,{"$f":"COUNTIF(S50:S51, \"C\")+COUNTIF(S50:S51, \"NVT\")","v":0},null,{"$f":"COUNTIF(U50:U51, \"C\")+COUNTIF(U50:U51, \"NVT\")","v":0},null,{"$f":"COUNTIF(W50:W51, \"C\")+COUNTIF(W50:W51, \"NVT\")","v":0},null,{"$f":"COUNTIF(Y50:Y51, \"C\")+COUNTIF(Y50:Y51, \"NVT\")","v":0},null,{"$f":"COUNTIF(AA50:AA51, \"C\")+COUNTIF(AA50:AA51, \"NVT\")","v":0},null,{"$f":"COUNTIF(AC50:AC51, \"C\")+COUNTIF(AC50:AC51, \"NVT\")","v":0},null,{"$f":"COUNTIF(AE50:AE51, \"C\")+COUNTIF(AE50:AE51, \"NVT\")","v":0},null,{"$f":"COUNTIF(K53:AE53, \"2\")","v":0}]
[]
[null,null,"Het gaat bij dit criterium om aanbevelingen 12, 33, 34 , 35 en 37 uit de richtlijn ",{"$nulls":15},"Aanbeveling",null,null,null,12,null,33,null,34,null,35,null,37]
[null,null,"Diagnostiek en behandeling van AFASIE (NVLF, 2015)."]
[null,null,"Score \"NVT\" is toelaatbaar mits aantoonbaar gemotiveerd is afgeweken",{"$nulls":15},"Dossier 1"]
[null,null,"van het gebruik van de richtlijn.",{"$nulls":15},"Dossier 2",{"$nulls":13},"Minimaal"]
[{"$nulls":32},"5 uit 5"]
[null,null,"Score 2.4 Richtlijn AFASIE \"Conform\" of \"NVT\"",{"$nulls":19},{"$f":"COUNTIF(W57:W58, \"C\")+COUNTIF(W57:W58, \"NVT\")","v":0},null,{"$f":"COUNTIF(Y57:Y58, \"C\")+COUNTIF(Y57:Y58, \"NVT\")","v":0},null,{"$f":"COUNTIF(AA57:AA58, \"C\")+COUNTIF(AA57:AA58, \"NVT\")","v":0},null,{"$f":"COUNTIF(AC57:AC58, \"C\")+COUNTIF(AC57:AC58, \"NVT\")","v":0},null,{"$f":"COUNTIF(AE57:AE58, \"C\")+COUNTIF(AE57:AE58, \"NVT\")","v":0},null,{"$f":"COUNTIF(W60:AE60, \"2\")","v":0}]
[]
[null,null,"Het gaat bij dit criterium om aanbevelingen 7, 8, 12, 18 uit de richtlijn ",{"$nulls":15},"Aanbeveling",null,null,null,7,null,8,null,12,null,18]
[null,null,"Logopedie bij taalontwikkelingsstoornissen  (NVLF, 2017)."]
[null,null,"Score \"NVT\" is toelaatbaar mits aantoonbaar gemotiveerd is afgeweken",{"$nulls":15},"Dossier 1"]
[null,null,"van het gebruik van de richtlijn.",{"$nulls":15},"Dossier 2",{"$nulls":13},"Minimaal"]
[{"$nulls":32},"4 uit 4"]
[null,null,"Score 2.4 Richtlijn TOS \"Conform\" of \"NVT\"",{"$nulls":19},{"$f":"COUNTIF(W64:W65, \"C\")+COUNTIF(W64:W65, \"NVT\")","v":0},null,{"$f":"COUNTIF(Y64:Y65, \"C\")+COUNTIF(Y64:Y65, \"NVT\")","v":0},null,{"$f":"COUNTIF(AA64:AA65, \"C\")+COUNTIF(AA64:AA65, \"NVT\")","v":0},null,{"$f":"COUNTIF(AC64:AC65, \"C\")+COUNTIF(AC64:AC65, \"NVT\")","v":0},null,{"$f":"COUNTIF(AE64:AE65, \"C\")+COUNTIF(AE64:AE65, \"NVT\")","v":0},null,{"$f":"COUNTIF(W67:AE67, \"2\")","v":0}]
[]
[]
[{"$nulls":26},"Terug naar Audit Checklist deel 2 - klik",{"$nulls":7},"HIER"]

{"sheet":"vraag 3.12 - 3.16","index":8,"n_rows":24,"n_cols":45,"rows_kept":24,"cut":false,"hidden":false,"merged":[]}
[]
[null,null,"Deel 3 Organisatie van de praktijk"]
[{"$nulls":31},"Terug naar Audit Checklist deel 3 - klik",{"$nulls":7},"Hier"]
[null,null,"B. Privacy en Veiligheid"]
[{"$nulls":42},"Minimaal"]
[null,null,"Vragen 3.7 en 3.8",{"$nulls":9},1,null,2,null,3,null,4,null,5,null,6,null,7,null,8,null,9,null,10,null,11,null,12,null,13,null,14,null,15,null,{"$f":"0.8*AS6","v":4},"uit",{"$f":"'Deel 1'!X28","v":5}]
[null,null,"3.7","WBGO aan patient kenbaar gemaakt?",{"$nulls":38},{"$f":"COUNTIF(M7:AO7, \"C\")","v":0}]
[null,null,"3.8","Dossiers bewaard comform privacywetgeving?",{"$nulls":38},{"$f":"COUNTIF(M8:AO8, \"C\")","v":0}]
[]
[{"$nulls":28},"Terug naar Audit Checklist vraag 3.7 - 3.8 - klik",{"$nulls":11},"Hier"]
[null,null,"B. Privacy en Veiligheid"]
[{"$nulls":12},"3.9 Inrichtingseisen",{"$nulls":4},"3.10 Calamitei- ",null,null,null,"3.11 voorzieningen ",{"$nulls":6},"3.9 verplicht \"C\""]
[{"$nulls":17},"tenplan",{"$nulls":4},"calamiteiten"]
[null,null,"Hoofdvestiging",{"$nulls":25},{"$f":"COUNTIFS(O14:S14:W14, \"C\")","v":0}]
[]
[null,null,"Nevenvestiging 1",{"$nulls":25},{"$f":"COUNTIFS(O16:S16:W16, \"C\")","v":0}]
[]
[null,null,"Nevenvestiging 2",{"$nulls":25},{"$f":"COUNTIFS(O18:S18:W18, \"C\")","v":0}]
[]
[null,null,"Nevenvestiging 3",{"$nulls":25},{"$f":"COUNTIFS(O20:S20:W20, \"C\")","v":0}]
[]
[null,null,"Nevenvestiging 4",{"$nulls":25},{"$f":"COUNTIFS(O22:S22:W22, \"C\")","v":0}]
[]
[{"$nulls":28},"Terug naar Audit Checklist vraag 3.9 - 3.11 - klik",{"$nulls":11},"Hier"]